bitfinex-derivatives/quotes_BTCF0:USTF0_20250806
["timestamp","ask_amount","ask_price","bid_price","bid_amount"]
[1754458325642,0.2137507,114000.0,113990.0,1.3476687]
[1754458325934,0.1764407,114000.0,113990.0,2.01864998]
[1754458326641,0.1764407,114000.0,113990.0,1.8621613]
[1754458326941,0.1764407,114000.0,113990.0,2.06603152]
[1754458327441,0.1764407,114000.0,113990.0,1.03704632]
[1754458327642,0.1754407,114000.0,113990.0,1.55153892]
[1754458327828,0.2631547,114010.0,114000.0,0.1908611]
[1754458328140,0.2870547,114010.0,114000.0,1.2424663]
[1754458328342,0.2870547,114010.0,114000.0,1.3519441]
[1754458328844,0.2870547,114010.0,114000.0,0.78016936]
[1754458329041,0.2880547,114010.0,114000.0,0.78016936]
[1754458329942,0.3084447,114010.0,114000.0,0.78016936]
[1754458330144,0.3215747,114010.0,114000.0,0.78016936]
[1754458330444,0.3539547,114010.0,114000.0,0.78016936]
[1754458330644,0.3001847,114010.0,114000.0,0.78016936]
[1754458330845,0.3001847,114010.0,114000.0,0.78116936]
[1754458331448,0.3205747,114010.0,114000.0,0.78116936]
[1754458331648,0.3749847,114010.0,114000.0,0.78116936]
[1754458331849,0.3912047,114010.0,114000.0,0.78216936]
[1754458332546,0.3912047,114010.0,114000.0,0.3249589]
[1754458332850,0.3912047,114010.0,114000.0,0.78216936]
[1754458333652,0.3912047,114010.0,114000.0,0.67269156]
[1754458334342,0.3912047,114010.0,114000.0,0.78216936]
[1754458335453,0.2631547,114010.0,114000.0,0.78216936]
[1754458335853,0.2870547,114010.0,114000.0,0.78216936]
[1754458336048,0.3205747,114010.0,114000.0,0.78216936]
[1754458336248,0.2767159,114010.0,114000.0,0.78216936]
[1754458337449,0.2563259,114010.0,114000.0,0.78216936]
[1754458337856,0.2767159,114010.0,114000.0,0.67269156]
[1754458338249,0.3473459,114010.0,114000.0,0.67269156]
[1754458338453,0.3473459,114010.0,114000.0,0.82908842]
[1754458339159,0.3473459,114010.0,114000.0,0.67269156]
[1754458339353,0.2945759,114010.0,114000.0,0.67269156]
[1754458339656,0.3473459,114010.0,114000.0,0.67269156]
[1754458345755,0.3149659,114010.0,114000.0,0.67269156]
[1754458345949,0.3490909,114020.0,114010.0,0.1754259]
[1754458346159,0.3215409,114020.0,114010.0,0.82788361]
[1754458346461,0.3004809,114020.0,114010.0,0.82788361]
[1754458346852,0.3198509,114020.0,114010.0,0.82788361]
[1754458347052,0.3520509,114020.0,114010.0,0.82788361]
[1754458347352,0.3891709,114020.0,114010.0,0.82788361]
[1754458349362,0.3891709,114020.0,114010.0,0.82888361]
[1754458349865,0.3881709,114020.0,114010.0,0.82988361]
[1754458350363,0.3881709,114020.0,114010.0,0.82888361]
[1754458350559,0.3881709,114020.0,114010.0,0.82988361]
[1754458352362,0.2631709,114020.0,114010.0,0.82988361]
[1754458352769,0.2871909,114020.0,114010.0,0.82988361]
[1754458352966,0.3198509,114020.0,114010.0,0.82988361]
[1754458353169,0.3520509,114020.0,114010.0,0.82988361]
[1754458353464,0.3881709,114020.0,114010.0,0.82988361]
[1754458354867,0.3881709,114020.0,114010.0,0.67375636]
[1754458356168,0.3881709,114020.0,114010.0,0.65111636]
[1754458356466,0.3881709,114020.0,114010.0,0.67375636]
[1754458358665,0.3881709,114020.0,114010.0,0.73083771]
[1754458365476,0.2193159,114020.0,114010.0,0.73983635]
[1754458365773,0.3880827,114040.0,114030.0,0.2145153]
[1754458365968,0.3880827,114040.0,114030.0,1.85913892]
[1754458367374,0.3900827,114040.0,114030.0,1.85913892]
[1754458368190,0.002,114040.0,114030.0,1.9487279]
[1754458368389,0.002,114040.0,114030.0,1.87817193]
[1754458368791,0.002,114040.0,114030.0,1.30645105]
[1754458369288,0.3695559,114050.0,114040.0,0.1918599]
[1754458369484,0.3257146,114050.0,114040.0,0.82728282]
[1754458370183,0.15035,114050.0,114040.0,0.82728282]
[1754458370786,0.15035,114050.0,114040.0,0.82828282]
[1754458370987,0.15035,114050.0,114040.0,0.67336264]
[1754458371495,0.3257146,114050.0,114040.0,0.67336264]
[1754458372595,0.3257146,114050.0,114040.0,0.2164999]
[1754458372797,0.3257146,114050.0,114040.0,0.67336264]
[1754458374194,0.3257146,114050.0,114040.0,0.8094599]
[1754458374992,0.3257146,114050.0,114040.0,0.63408]
[1754458375598,0.3257146,114050.0,114040.0,0.8094599]
[1754458380296,0.3257146,114050.0,114040.0,0.01848]
[1754458380497,0.78257734,114050.0,114040.0,0.002]
[1754458381000,0.3257146,114050.0,114040.0,0.002]
[1754458382302,0.78257734,114050.0,114040.0,0.001]
[1754458382502,0.2273199,114040.0,114030.0,0.86886601]
[1754458382700,0.3053199,114040.0,114030.0,0.86886601]
[1754458383697,0.3053199,114040.0,114030.0,0.87086601]
[1754458383898,0.3053199,114040.0,114030.0,0.836563]
[1754458384300,0.3053199,114040.0,114030.0,0.852833]
[1754458384604,0.3053199,114040.0,114030.0,0.852713]
[1754458386800,0.3053199,114040.0,114030.0,0.875463]
[1754458388106,0.3053199,114040.0,114030.0,0.8316148]
[1754458388414,0.3053199,114040.0,114030.0,0.63347]
[1754458388599,0.76218264,114040.0,114030.0,0.01827]
[1754458388801,0.76218264,114040.0,114030.0,0.61708]
[1754458390405,0.3053199,114040.0,114030.0,0.61708]
[1754458391404,0.3053199,114040.0,114030.0,0.7924753]
[1754458391604,0.3053199,114040.0,114030.0,0.8087453]
[1754458391804,0.3053199,114040.0,114030.0,0.8314953]
[1754458393106,0.3053199,114040.0,114030.0,0.6561]
[1754458393312,0.76218264,114040.0,114030.0,0.61708]
[1754458393511,0.76218264,114040.0,114030.0,0.002]
[1754458393810,1.06218264,114040.0,114030.0,0.002]
[1754458394010,0.76218264,114040.0,114030.0,0.002]
[1754458394605,0.76218264,114040.0,114030.0,0.01827]
[1754458395413,0.76218264,114040.0,114030.0,0.1936655]
[1754458395414,0.3053199,114040.0,114030.0,0.1936655]
[1754458395714,0.3053199,114040.0,114030.0,0.2164155]
[1754458395908,0.2704199,114040.0,114030.0,0.67327824]
[1754458396111,0.3053199,114040.0,114030.0,0.67327824]
[1754458396305,0.2505699,114040.0,114030.0,0.67327824]
[1754458396505,0.2704199,114040.0,114030.0,0.67327824]
[1754458396714,0.3053199,114040.0,114030.0,0.82919842]
[1754458397016,0.1753799,114040.0,114030.0,0.82919842]
[1754458397205,0.2316799,114040.0,114030.0,0.82919842]
[1754458397713,0.2665799,114040.0,114030.0,0.82919842]
[1754458397908,0.2894199,114040.0,114030.0,0.82919842]
[1754458399515,0.2346699,114040.0,114030.0,0.82919842]
[1754458399812,0.1885799,114040.0,114030.0,0.82919842]
[1754458400110,0.1753799,114040.0,114030.0,0.82919842]
[1754458400311,0.2884181,114050.0,114040.0,0.1916501]
[1754458400617,0.4183581,114050.0,114040.0,1.11052274]
[1754458400805,0.4183581,114050.0,114040.0,0.63091]
[1754458402210,0.4193581,114050.0,114040.0,0.63091]
[1754458404318,0.2428098,114040.0,114030.0,1.02310444]
[1754458404520,0.1753798,114040.0,114030.0,1.50250718]
[1754458404814,0.3907108,114050.0,114040.0,0.2136798]
[1754458405017,0.3332608,114050.0,114040.0,0.67054254]
[1754458405218,0.2894164,114050.0,114040.0,1.28498254]
[1754458405619,0.2894164,114050.0,114040.0,1.44090272]
[1754458406418,0.2884164,114050.0,114040.0,1.44090272]
[1754458406715,0.3130264,114050.0,114040.0,1.44090272]
[1754458407122,0.3130264,114050.0,114040.0,1.44190272]
[1754458407626,0.2884164,114050.0,114040.0,1.44190272]
[1754458408228,0.2884164,114050.0,114040.0,1.44290272]
[1754458408418,0.3130264,114050.0,114040.0,1.44290272]
[1754458408927,0.3804564,114050.0,114040.0,1.44290272]
[1754458409225,0.4178364,114050.0,114040.0,0.98604048]
[1754458410326,0.4178364,114050.0,114040.0,1.44290322]
[1754458416845,0.4178364,114050.0,114040.0,1.28698304]
[1754458420045,0.4178364,114050.0,114040.0,1.29599814]
[1754458420439,0.02535,114050.0,114040.0,1.29599814]
[1754458422550,0.02535,114050.0,114040.0,1.75286088]
[1754458423247,0.02535,114050.0,114040.0,1.9567311]
[1754458423447,0.1999465,114070.0,114060.0,0.1753495]
[1754458423647,0.1999465,114070.0,114060.0,1.24601224]
[1754458423843,0.2327865,114070.0,114060.0,1.24601224]
[1754458425347,0.1753365,114070.0,114060.0,1.24601224]
[1754458425543,0.3003294,114080.0,114070.0,0.1753342]
[1754458425744,0.3204794,114080.0,114070.0,0.63219694]
[1754458426243,0.2126588,114080.0,114070.0,0.63219694]
[1754458426649,0.00104,114080.0,114070.0,0.63219694]
[1754458426849,0.02565,114080.0,114070.0,0.63219694]
[1754458427847,0.1999688,114080.0,114070.0,0.63219694]
[1754458428744,0.1999688,114080.0,114070.0,0.63319694]
[1754458428948,0.2328088,114080.0,114070.0,0.63319694]
[1754458429150,0.2328088,114080.0,114070.0,0.78912563]
[1754458431755,0.2328088,114080.0,114070.0,0.79012563]
[1754458432547,0.2328088,114080.0,114070.0,0.78912563]
[1754458432753,0.2126588,114080.0,114070.0,0.78912563]
[1754458433347,0.03734,114080.0,114070.0,0.63319694]
[1754458433854,0.2126599,114080.0,114070.0,0.63319694]
[1754458434351,0.2323399,114080.0,114070.0,0.63319694]
[1754458434554,0.3037499,114080.0,114070.0,0.63319694]
[1754458435662,0.1753599,114080.0,114070.0,0.63319694]
[1754458435858,0.3048199,114080.0,114070.0,0.63319694]
[1754458436853,0.3048199,114080.0,114070.0,0.63519694]
[1754458437456,0.3048199,114080.0,114070.0,0.63419694]
[1754458438350,0.3048199,114080.0,114070.0,0.63319694]
[1754458438749,0.3048199,114080.0,114070.0,0.1763342]
[1754458439155,0.3048199,114080.0,114070.0,0.63319694]
[1754458442659,0.3048199,114080.0,114070.0,0.7894153]
[1754458442859,0.3048199,114080.0,114070.0,1.24627804]
[1754458447166,0.3048199,114080.0,114070.0,0.1763353]
[1754458447365,0.3048199,114080.0,114070.0,0.7892153]
[1754458448761,0.3048199,114080.0,114070.0,1.24607804]
[1754458449058,0.3048199,114080.0,114070.0,0.001]
[1754458449259,0.76168264,114080.0,114070.0,0.001]
[1754458449461,0.76168264,114080.0,114070.0,0.61376]
[1754458449961,2.26168264,114080.0,114070.0,0.61376]
[1754458450561,1.8048199,114080.0,114070.0,0.61376]
[1754458450761,1.8048199,114080.0,114070.0,0.7890953]
[1754458451161,1.8048199,114080.0,114070.0,0.61376]
[1754458451867,1.8048199,114080.0,114070.0,0.1763353]
[1754458454067,1.8048199,114080.0,114070.0,0.001]
[1754458454675,1.8048199,114080.0,114070.0,0.1763353]
[1754458454862,2.26168264,114080.0,114070.0,0.1763353]
[1754458455062,1.8048199,114080.0,114070.0,0.1763353]
[1754458456966,2.26168264,114080.0,114070.0,0.001]
[1754458457362,0.2261653,114070.0,114060.0,0.6126]
[1754458457566,0.76165804,114070.0,114060.0,0.6126]
[1754458457778,0.2261807,114060.0,114050.0,1.09287248]
[1754458457971,0.3048107,114060.0,114050.0,1.09287248]
[1754458458371,0.3048107,114060.0,114050.0,0.43647138]
[1754458458574,0.3048107,114060.0,114050.0,0.39263028]
[1754458458780,0.3048107,114060.0,114050.0,1.00515028]
[1754458458969,0.31362551,114060.0,114050.0,0.96130918]
[1754458459674,0.31362551,114060.0,114050.0,0.34878918]
[1754458459873,0.31362551,114060.0,114050.0,0.80538049]
[1754458460175,0.31362551,114060.0,114050.0,0.80838049]
[1754458460376,0.31362551,114060.0,114050.0,0.81038049]
[1754458460772,0.31362551,114060.0,114050.0,0.63502699]
[1754458462071,0.31362551,114060.0,114050.0,0.19787309]
[1754458462272,0.31362551,114060.0,114050.0,0.81031309]
[1754458464674,0.3048107,114060.0,114050.0,0.81031309]
[1754458468587,0.31364352,114060.0,114050.0,0.81031309]
[1754458470090,0.20916352,114060.0,114050.0,0.81031309]
[1754458470284,0.20916352,114060.0,114050.0,1.26717583]
[1754458470285,0.2130607,114060.0,114050.0,1.26717583]
[1754458470492,0.2807307,114060.0,114050.0,1.26717583]
[1754458470688,0.3028807,114060.0,114050.0,1.26717583]
[1754458471184,0.3028807,114060.0,114050.0,0.81031309]
[1754458471993,0.2003307,114060.0,114050.0,0.81031309]
[1754458472685,0.2310907,114060.0,114050.0,0.81031309]
[1754458473382,0.2310907,114060.0,114050.0,1.26717583]
[1754458473581,0.2652407,114060.0,114050.0,1.26717583]
[1754458474394,0.3028807,114060.0,114050.0,1.26717583]
[1754458474793,0.3028807,114060.0,114050.0,0.81031309]
[1754458475096,0.3028807,114060.0,114050.0,1.26717583]
[1754458476095,0.3028807,114060.0,114050.0,1.26717573]
[1754458476395,0.3028807,114060.0,114050.0,0.81031299]
[1754458481292,0.3028807,114060.0,114050.0,0.81031289]
[1754458485004,0.3028807,114060.0,114050.0,0.63494699]
[1754458486803,0.81691917,114060.0,114050.0,1.14898546]
[1754458487003,0.81691917,114060.0,114050.0,1.32435136]
[1754458487304,0.81691917,114060.0,114050.0,1.14898546]
[1754458487691,0.81691917,114060.0,114050.0,1.32435136]
[1754458490404,0.81691917,114060.0,114050.0,0.63494699]
[1754458490906,1.33095764,114060.0,114050.0,0.61672]
[1754458491207,0.81691917,114060.0,114050.0,0.61672]
[1754458492206,0.81691917,114060.0,114050.0,0.7920859]
[1754458492702,0.81691917,114060.0,114050.0,0.33629459]
[1754458492908,1.42859917,114060.0,114050.0,0.33629459]
[1754458493510,1.42859917,114060.0,114050.0,0.1803659]
[1754458493713,1.42859917,114060.0,114050.0,0.005]
[1754458494508,1.42859917,114060.0,114050.0,0.1803659]
[1754458495012,0.9145607,114060.0,114050.0,0.1803659]
[1754458495201,1.42859917,114060.0,114050.0,0.1803659]
[1754458495908,1.42859917,114060.0,114050.0,0.33629459]
[1754458496917,1.42859917,114060.0,114050.0,0.16092869]
[1754458497315,1.42859917,114060.0,114050.0,0.33629459]
[1754458497813,1.42859917,114060.0,114050.0,0.16092869]
[1754458498418,1.42859917,114060.0,114050.0,0.005]
[1754458501116,0.2244059,114050.0,114040.0,0.15592869]
[1754458501310,0.88423619,114050.0,114040.0,0.15592869]
[1754458501714,0.2989213,114040.0,114030.0,1.34468297]
[1754458502016,0.2654613,114040.0,114030.0,1.85872144]
[1754458502417,0.1753813,114040.0,114030.0,1.86741063]
[1754458502713,0.32957,114050.0,114040.0,0.1753813]
[1754458502913,0.32957,114050.0,114040.0,0.68941977]
[1754458503112,0.2857253,114050.0,114040.0,1.30077977]
[1754458503513,0.1980388,114050.0,114040.0,1.30077977]
[1754458504321,0.2617988,114050.0,114040.0,1.30077977]
[1754458504518,0.2989188,114050.0,114040.0,1.30077977]
[1754458504819,0.2989188,114050.0,114040.0,1.45670846]
[1754458505510,0.2989188,114050.0,114040.0,1.45970846]
[1754458505921,0.2989188,114050.0,114040.0,1.46270846]
[1754458506319,0.2989188,114050.0,114040.0,1.46170846]
[1754458506514,0.2989188,114050.0,114040.0,1.45970846]
[1754458507722,0.2099588,114050.0,114040.0,1.45970846]
[1754458510422,0.2099588,114050.0,114040.0,0.94566999]
[1754458510723,0.2283388,114050.0,114040.0,1.45970846]
[1754458511824,0.2099588,114050.0,114040.0,1.45970846]
[1754458512125,0.1753788,114050.0,114040.0,1.30377977]
[1754458512426,0.1980179,114060.0,114050.0,0.1753659]
[1754458512619,0.1980179,114060.0,114050.0,0.68940437]
[1754458513117,0.1980179,114060.0,114050.0,0.84533306]
[1754458513118,0.2443079,114060.0,114050.0,0.84533306]
[1754458513322,0.2988979,114060.0,114050.0,0.84533306]
[1754458513516,0.81293637,114060.0,114050.0,0.84533306]
[1754458514519,0.81293637,114060.0,114050.0,0.68940437]
[1754458514727,0.81293637,114060.0,114050.0,0.84552893]
[1754458515427,0.81293637,114060.0,114050.0,0.68940437]
[1754458517322,0.81293637,114060.0,114050.0,0.69040437]
[1754458518135,0.81293637,114060.0,114050.0,0.84649279]
[1754458518822,0.2988979,114060.0,114050.0,0.84649279]
[1754458519129,0.81293637,114060.0,114050.0,0.84649279]
[1754458519627,0.81293637,114060.0,114050.0,0.33245432]
[1754458519829,0.81293637,114060.0,114050.0,0.84649279]
[1754458521729,0.2988979,114060.0,114050.0,0.84649279]
[1754458522026,0.81293637,114060.0,114050.0,0.84649279]
[1754458522631,1.32697484,114060.0,114050.0,0.15708842]
[1754458522826,1.32697484,114060.0,114050.0,0.76792842]
[1754458523231,0.81293637,114060.0,114050.0,0.76792842]
[1754458523826,0.81293637,114060.0,114050.0,0.61184]
[1754458524632,0.2988979,114060.0,114050.0,0.7872057]
[1754458524825,0.81293637,114060.0,114050.0,1.30124417]
[1754458525020,0.2988979,114060.0,114050.0,1.30124417]
[1754458525831,0.81293637,114060.0,114050.0,1.30124417]
[1754458526635,0.2988979,114060.0,114050.0,0.7872057]
[1754458534836,0.2654379,114060.0,114050.0,0.7872057]
[1754458535140,0.2998079,114060.0,114050.0,0.7872057]
[1754458536849,0.0086731,114080.0,114050.0,0.7872057]
[1754458537044,0.2669154,114080.0,114070.0,0.63221691]
[1754458537237,0.75858731,114080.0,114070.0,0.61048]
[1754458538244,0.76158731,114080.0,114070.0,0.71976057]
[1754458538543,0.3047054,114080.0,114070.0,0.89509557]
[1754458538745,0.3047054,114080.0,114070.0,0.785815]
[1754458538947,0.3047054,114080.0,114070.0,1.24269691]
[1754458540534,0.3057054,114080.0,114070.0,1.24269691]
[1754458540734,0.2709154,114080.0,114070.0,1.24269691]
[1754458540936,0.0282,114080.0,114070.0,1.24269691]
[1754458541142,0.00404,114080.0,114070.0,1.71801691]
[1754458541343,0.00304,114080.0,114070.0,1.71801691]
[1754458541644,4e-05,114080.0,114070.0,1.82723603]
[1754458541845,0.00104,114080.0,114070.0,1.82723603]
[1754458542342,0.00104,114080.0,114070.0,1.83618708]
[1754458543042,0.00104,114080.0,114070.0,1.82723603]
[1754458543237,0.03751,114080.0,114070.0,1.35191603]
[1754458543437,0.05547,114080.0,114070.0,1.35191603]
[1754458543745,0.05547,114080.0,114070.0,1.35391603]
[1754458544242,0.2128297,114080.0,114070.0,0.89703412]
[1754458544445,0.3026997,114080.0,114070.0,0.74343603]
[1754458544648,0.3026997,114080.0,114070.0,1.35371603]
[1754458544846,0.3026997,114080.0,114070.0,0.89683412]
[1754458545838,0.3016997,114080.0,114070.0,0.89683412]
[1754458546034,0.3016997,114080.0,114070.0,0.89783412]
[1754458546247,0.3016997,114080.0,114070.0,0.788615]
[1754458546547,0.3026997,114080.0,114070.0,0.787615]
[1754458547344,0.12738,114080.0,114070.0,1.24449691]
[1754458547646,0.2679097,114080.0,114070.0,1.24449691]
[1754458547835,0.09259,114080.0,114070.0,1.24449691]
[1754458548039,0.2679097,114080.0,114070.0,1.24449691]
[1754458548234,0.09259,114080.0,114070.0,1.24449691]
[1754458548445,0.07074,114080.0,114070.0,1.24349691]
[1754458548641,0.00104,114080.0,114070.0,1.24349691]
[1754458548846,0.0252,114080.0,114070.0,1.24349691]
[1754458549351,0.2307897,114080.0,114070.0,1.24249691]
[1754458549547,0.3026997,114080.0,114070.0,1.24249691]
[1754458553246,0.09259,114080.0,114070.0,1.24249691]
[1754458553644,0.05547,114080.0,114070.0,1.24249691]
[1754458554347,0.2307897,114080.0,114070.0,1.24249691]
[1754458554647,0.2671997,114080.0,114070.0,0.785615]
[1754458554858,0.3003397,114080.0,114070.0,1.24249691]
[1754458556355,0.3003397,114080.0,114070.0,0.785615]
[1754458556846,0.3003397,114080.0,114070.0,1.24249691]
[1754458561848,0.00104,114080.0,114070.0,1.24249691]
[1754458562248,0.02528,114080.0,114070.0,1.24249691]
[1754458562455,0.00104,114080.0,114070.0,1.24249691]
[1754458566564,0.00104,114080.0,114070.0,1.39858533]
[1754458568762,0.02424,114100.0,114090.0,0.1753043]
[1754458568957,0.04178,114100.0,114090.0,1.35117583]
[1754458569258,0.02424,114100.0,114090.0,1.24194621]
[1754458569651,0.2737466,114120.0,114110.0,0.1752736]
[1754458569851,0.2737466,114120.0,114110.0,1.24187551]
[1754458570058,0.2979866,114120.0,114110.0,0.7849936]
[1754458570260,0.2979866,114120.0,114110.0,1.24187551]
[1754458570658,0.2979866,114120.0,114110.0,1.35109005]
[1754458570852,0.3019866,114120.0,114110.0,1.35109005]
[1754458571059,0.3039866,114120.0,114110.0,1.35109005]
[1754458575468,0.2055066,114120.0,114110.0,1.35109005]
[1754458575767,0.2344366,114120.0,114110.0,1.35109005]
[1754458575969,0.3039866,114120.0,114110.0,0.89420814]
[1754458576170,0.3039866,114120.0,114110.0,1.35109005]
[1754458577474,0.3039866,114120.0,114110.0,1.24187551]
[1754458578472,0.2055066,114120.0,114110.0,1.24187551]
[1754458578870,0.2168966,114120.0,114110.0,1.24187551]
[1754458579180,0.2344366,114120.0,114110.0,1.35109005]
[1754458579366,0.2495666,114120.0,114110.0,1.35109005]
[1754458579567,0.3039866,114120.0,114110.0,0.89420814]
[1754458579775,0.3039866,114120.0,114110.0,1.35109005]
[1754458580875,0.3039866,114120.0,114110.0,0.89420814]
[1754458581076,0.3039866,114120.0,114110.0,1.35109005]
[1754458581262,0.3039866,114120.0,114110.0,0.10921454]
[1754458581468,0.3039866,114120.0,114110.0,0.71865454]
[1754458581670,0.3039866,114120.0,114110.0,0.10921454]
[1754458581875,0.3039866,114120.0,114110.0,0.71865454]
[1754458582064,0.3039866,114120.0,114110.0,0.89392894]
[1754458582778,0.3064066,114120.0,114110.0,0.89392894]
[1754458583272,0.3064066,114120.0,114110.0,1.35081085]
[1754458583578,0.3064066,114120.0,114110.0,1.24159631]
[1754458584671,0.3064066,114120.0,114110.0,1.06632191]
[1754458584873,0.3064066,114120.0,114110.0,0.60944]
[1754458585277,0.3010244,114110.0,114100.0,0.89050033]
[1754458585575,0.3010244,114110.0,114100.0,1.49986033]
[1754458586277,0.3010244,114110.0,114100.0,0.84667893]
[1754458586479,0.3040244,114110.0,114100.0,1.45603893]
[1754458586671,0.3040244,114110.0,114100.0,1.34682439]
[1754458587476,0.3040244,114110.0,114100.0,1.45603893]
[1754458587676,0.3040244,114110.0,114100.0,1.45599893]
[1754458588377,0.3040244,114110.0,114100.0,1.34678439]
[1754458588573,0.1782744,114110.0,114100.0,1.34678439]
[1754458588777,0.2031244,114110.0,114100.0,1.34678439]
[1754458589174,0.2211344,114110.0,114100.0,1.34678439]
[1754458589573,0.2211344,114110.0,114100.0,1.45599893]
[1754458590080,0.2326744,114110.0,114100.0,1.45599893]
[1754458590279,0.1782744,114110.0,114100.0,1.45599893]
[1754458590473,0.2021244,114110.0,114100.0,1.45599893]
[1754458590772,0.2316744,114110.0,114100.0,1.45599893]
[1754458590978,0.3030244,114110.0,114100.0,1.45599893]
[1754458591687,0.3020244,114110.0,114100.0,1.45599893]
[1754458592975,0.2698744,114110.0,114100.0,1.45599893]
[1754458593678,0.0554,114110.0,114100.0,1.45599893]
[1754458594273,0.2306744,114110.0,114100.0,1.45599893]
[1754458594472,0.2126644,114110.0,114100.0,1.45599893]
[1754458594868,0.02585,114110.0,114100.0,1.45599893]
[1754458595179,0.02585,114110.0,114100.0,1.34678439]
[1754458596382,0.04386,114110.0,114100.0,1.34678439]
[1754458597185,0.0554,114110.0,114100.0,1.34678439]
[1754458597886,0.12675,114110.0,114100.0,1.34678439]
[1754458599585,0.12675,114110.0,114100.0,1.50287281]
[1754458601287,0.02585,114110.0,114100.0,1.50287281]
[1754458601488,0.001,114110.0,114100.0,1.50287281]
[1754458602484,0.3009945,114130.0,114120.0,0.2628751]
[1754458602682,0.12575,114130.0,114120.0,1.43918104]
[1754458603383,0.0936,114130.0,114120.0,1.43918104]
[1754458603889,0.0976,114130.0,114120.0,1.32991701]
[1754458604091,0.12975,114130.0,114120.0,1.32991701]
[1754458604890,0.13175,114130.0,114120.0,1.32991701]
[1754458605185,0.13175,114130.0,114120.0,0.8730351]
[1754458605393,0.13175,114130.0,114120.0,1.32991701]
[1754458605585,0.04239,114130.0,114120.0,1.32991701]
[1754458605785,0.0604,114130.0,114120.0,1.32991701]
[1754458606291,0.09255,114130.0,114120.0,1.32991701]
[1754458606487,0.13175,114130.0,114120.0,1.32991701]
[1754458607388,0.0996,114130.0,114120.0,1.32991701]
[1754458607588,0.04239,114130.0,114120.0,1.32991701]
[1754458608189,0.04239,114130.0,114120.0,0.8730351]
[1754458608389,0.04239,114130.0,114120.0,1.32991701]
[1754458608588,0.09255,114130.0,114120.0,1.32991701]
[1754458609087,0.0604,114130.0,114120.0,1.32991701]
[1754458609990,0.07683,114130.0,114120.0,1.32991701]
[1754458610190,0.07683,114130.0,114120.0,0.8730351]
[1754458610387,0.05882,114130.0,114120.0,1.32991701]
[1754458611189,0.04239,114130.0,114120.0,1.32991701]
[1754458611387,0.04239,114130.0,114120.0,0.8730351]
[1754458611590,0.04239,114130.0,114120.0,1.32991701]
[1754458612495,0.06005,114130.0,114120.0,1.48600543]
[1754458613198,0.12883,114130.0,114120.0,1.48600543]
[1754458613399,0.12683,114130.0,114120.0,1.48600543]
[1754458613601,0.12683,114130.0,114120.0,1.02912352]
[1754458613896,0.12683,114130.0,114120.0,1.48600543]
[1754458614290,0.00899079,114150.0,114120.0,2.04298492]
[1754458614491,0.2427881,114180.0,114170.0,0.1751833]
[1754458614695,0.12538,114180.0,114170.0,0.1751833]
[1754458614899,0.12538,114180.0,114170.0,0.8380633]
[1754458615194,0.12538,114180.0,114170.0,1.29494521]
[1754458615394,0.12538,114180.0,114170.0,1.41156305]
[1754458615894,0.12538,114180.0,114170.0,0.95468114]
[1754458616099,0.2189295,114200.0,114170.0,1.40489941]
[1754458616304,0.04996,114180.0,114170.0,0.9865175]
[1754458616802,0.04996,114180.0,114170.0,1.44339941]
[1754458616997,0.04996,114180.0,114170.0,1.5521265]
[1754458617197,0.04996,114180.0,114170.0,1.09524459]
[1754458617503,0.04996,114180.0,114170.0,1.5521265]
[1754458617701,0.05196,114180.0,114170.0,1.5521265]
[1754458618194,0.13038,114180.0,114170.0,1.5521265]
[1754458618397,0.13038,114180.0,114170.0,1.09524459]
[1754458618588,0.13038,114180.0,114170.0,0.2136833]
[1754458618793,0.13038,114180.0,114170.0,0.03456]
[1754458618794,0.3055479,114180.0,114170.0,0.03456]
[1754458618989,0.76242981,114180.0,114170.0,0.12729702]
[1754458619302,0.13038,114180.0,114170.0,0.2723632]
[1754458619491,0.13038,114180.0,114170.0,0.72924511]
[1754458619899,0.13038,114180.0,114170.0,0.2723632]
[1754458620292,0.13038,114180.0,114170.0,0.72924511]
[1754458620488,0.13038,114180.0,114170.0,0.2723632]
[1754458621002,0.13038,114180.0,114170.0,0.72924511]
[1754458621296,0.13038,114180.0,114170.0,0.80680213]
[1754458621690,0.13038,114180.0,114170.0,0.86880926]
[1754458621895,0.12538,114190.0,114180.0,0.2815732]
[1754458622095,0.12538,114190.0,114180.0,0.2377812]
[1754458622301,0.12538,114190.0,114180.0,0.79119854]
[1754458622499,0.12538,114190.0,114180.0,0.33431663]
[1754458622689,0.12538,114190.0,114180.0,0.72922311]
[1754458622889,0.12538,114200.0,114190.0,0.2723328]
[1754458623191,0.09151,114200.0,114190.0,1.02118314]
[1754458623394,0.12538,114200.0,114190.0,0.78406]
[1754458623601,0.13414858,114210.0,114200.0,0.09718]
[1754458623806,0.13414858,114210.0,114200.0,0.33425746]
[1754458624096,0.30927078,114210.0,114200.0,0.15911996]
[1754458624503,0.30927078,114210.0,114200.0,0.09718]
[1754458624898,0.3035022,114210.0,114200.0,0.09718]
[1754458625198,0.12838,114210.0,114200.0,0.33425746]
[1754458625400,0.12838,114210.0,114200.0,0.79113937]
[1754458625610,0.12838,114210.0,114200.0,0.33425746]
[1754458625900,0.003,114210.0,114200.0,0.79108527]
[1754458626306,0.12538,114220.0,114210.0,0.72918241]
[1754458626499,0.12538,114220.0,114210.0,0.9607405]
[1754458627100,0.3004868,114220.0,114210.0,0.78562]
[1754458627906,0.3004868,114220.0,114210.0,0.78626]
[1754458628405,0.12538,114220.0,114210.0,0.9613822]
[1754458628802,0.3004868,114220.0,114210.0,0.78626]
[1754458629000,0.09151,114220.0,114210.0,0.9613822]
[1754458629201,0.09251,114220.0,114210.0,0.9613822]
[1754458629401,0.2676168,114220.0,114210.0,0.78626]
[1754458629598,0.001,114220.0,114210.0,1.41826411]
[1754458629799,0.09151,114240.0,114230.0,0.2722715]
[1754458629999,0.12538,114240.0,114230.0,1.41807341]
[1754458630205,0.12538,114240.0,114230.0,1.24298191]
[1754458630399,0.12538,114240.0,114230.0,1.41807341]
[1754458630999,0.12538,114250.0,114240.0,0.2722562]
[1754458631206,0.01105,114250.0,114240.0,0.72913811]
[1754458631405,0.08647,114250.0,114240.0,0.2722562]
[1754458631603,0.3004409,114250.0,114240.0,0.55406191]
[1754458631808,0.12538,114250.0,114240.0,0.2722562]
[1754458632002,0.3004409,114250.0,114240.0,0.72913811]
[1754458632203,0.12538,114250.0,114240.0,0.2722562]
[1754458632512,0.12538,114250.0,114240.0,0.72913811]
[1754458633107,0.01105,114250.0,114240.0,0.72913811]
[1754458633304,0.12538,114260.0,114250.0,0.2722408]
[1754458633509,0.12538,114260.0,114250.0,1.48160433]
[1754458633910,0.12538,114260.0,114250.0,1.41988271]
[1754458634301,0.01105,114260.0,114250.0,1.41988271]
[1754458634507,0.01105,114260.0,114250.0,1.49743973]
[1754458634716,0.3004255,114260.0,114250.0,0.17473702]
[1754458635011,0.12538,114260.0,114250.0,1.04103782]
[1754458635516,0.3004256,114260.0,114250.0,0.17473702]